bitfinex/quotes_SOLUSD_20250106
["timestamp","ask_amount","ask_price","bid_price","bid_amount"]
[1736196757111,8.82381428,218.8,218.77,0.275]
[1736196758828,8.82381428,218.81,218.77,0.275]
[1736196759534,8.82381428,218.82,218.77,0.275]
[1736196759712,11.4237,218.85,218.77,9.09881428]
[1736196760020,8.82381428,218.84,218.77,9.09881428]
[1736196761430,8.82381428,218.84,218.77,0.275]
[1736196762624,8.82381428,218.83,218.77,0.275]
[1736196765836,8.82381428,218.82,218.77,0.275]
[1736196766060,8.82381428,218.8,218.77,0.275]
[1736196767541,8.82381428,218.81,218.77,0.275]
[1736196767744,11.4237,218.85,218.77,0.275]
[1736196767745,8.82381428,218.84,218.77,0.275]
[1736196768445,8.82381428,218.82,218.77,0.275]
[1736196768623,11.4237,218.85,218.77,0.275]
[1736196768823,8.82381428,218.83,218.77,0.275]
[1736196769026,1.6198,218.88,218.78,8.82381428]
[1736196769341,57.91462991,218.89,218.87,8.82381428]
[1736196771959,57.91462991,218.89,218.86,8.82381428]
[1736196773445,57.91462991,218.89,218.81,2.80523013]
[1736196773622,66.73844419,218.89,218.83,28.82381428]
[1736196774042,66.73844419,218.89,218.84,23.776884]
[1736196774715,57.91462991,218.89,218.84,24.051884]
[1736196775251,57.91462991,218.89,218.84,9.09881428]
[1736196775458,57.91462991,218.89,218.84,32.87569828]
[1736196777346,57.91462991,218.89,218.84,24.051884]
[1736196778025,57.91462991,218.89,218.84,32.87569828]
[1736196780364,57.91462991,218.89,218.85,8.82381428]
[1736196780568,57.91462991,218.89,218.84,32.87569828]
[1736196781783,8.82381428,218.91,218.84,32.87569828]
[1736196784882,8.82381428,218.92,218.85,8.82381428]
[1736196785961,57.91462991,218.89,218.84,32.87569828]
[1736196786801,57.91462991,218.89,218.84,32.60069828]
[1736196788102,57.91462991,218.89,218.87,8.82381428]
[1736196788471,57.91462991,218.89,218.88,8.82381428]
[1736196790118,57.91462991,218.89,218.88,32.60069828]
[1736196791900,57.85956541,218.89,218.88,32.60069828]
[1736196792717,57.85956541,218.89,218.86,2.1]
[1736196792890,57.85956541,218.89,218.86,10.92381428]
[1736196793093,57.85956541,218.89,218.88,9.09881428]
[1736196795116,57.85956541,218.89,218.88,68.2964454]
[1736196796940,57.85956541,218.89,218.88,24.051884]
[1736196797108,57.85956541,218.89,218.88,0.275]
[1736196797434,57.85956541,218.89,218.88,9.09881428]
[1736196800928,57.85956541,218.89,218.88,70.2709554]
[1736196801131,57.85956541,218.89,218.88,76.5731554]
[1736196801930,57.85956541,218.89,218.88,41.40338828]
[1736196805924,57.85956541,218.89,218.88,32.454084]
[1736196806125,57.85956541,218.89,218.88,41.27789828]
[1736196807435,57.85956541,218.89,218.88,41.25789828]
[1736196808435,57.85956541,218.89,218.88,41.38338828]
[1736196811355,53.62996541,218.89,218.88,46.50887828]
[1736196811540,1.6612,219.01,218.92,20.0]
[1736196811855,1.6612,219.01,218.97,8.82381428]
[1736196812661,1.6612,219.01,218.96,8.82381428]
[1736196813249,1.6612,219.01,218.97,23.776884]
[1736196815056,1.6612,219.01,218.97,24.051884]
[1736196815259,8.82381428,219.04,218.97,9.09881428]
[1736196818053,8.82381428,219.03,218.97,24.051884]
[1736196820354,8.82381428,219.06,218.99,8.82381428]
[1736196820536,8.82381428,219.05,218.98,8.82381428]
[1736196820745,8.82381428,219.04,218.97,9.09881428]
[1736196822965,8.82381428,219.03,218.97,9.09881428]
[1736196824469,8.82381428,219.03,218.97,24.051884]
[1736196825981,8.82381428,219.02,218.97,24.051884]
[1736196827859,8.82381428,219.04,218.97,9.09881428]
[1736196828662,8.82381428,219.03,218.97,9.09881428]
[1736196831769,8.82381428,219.03,218.97,0.275]
[1736196831942,8.82381428,219.03,218.97,9.09881428]
[1736196834176,8.82381428,219.02,218.97,24.051884]
[1736196834552,8.82381428,219.02,218.97,0.275]
[1736196836185,1.5049,219.07,218.97,9.09881428]
[1736196836487,8.82381428,219.04,218.97,9.09881428]
[1736196836894,8.82381428,219.05,218.98,8.82381428]
[1736196837067,8.82381428,219.05,218.99,8.82381428]
[1736196837267,8.82381428,219.05,218.98,8.82381428]
[1736196838682,20.0,219.09,218.98,14.94481428]
[1736196838896,8.82381428,219.05,218.98,14.94481428]
[1736196840363,1.5098,219.13,219.03,8.82381428]
[1736196840687,8.82381428,219.11,219.04,8.82381428]
[1736196841464,1.5098,219.13,219.04,8.82381428]
[1736196841678,8.82381428,219.11,219.04,8.82381428]
[1736196843697,1.5098,219.13,219.05,8.82381428]
[1736196843877,20.0,219.15,219.05,8.82381428]
[1736196844078,8.82381428,219.12,219.05,8.82381428]
[1736196844690,1.5901,219.17,219.07,8.82381428]
[1736196844691,8.82381428,219.14,219.07,8.82381428]
[1736196845456,8.82381428,219.14,219.05,6.5362]
[1736196845457,8.82381428,219.15,219.08,8.82381428]
[1736196846306,8.82381428,219.16,219.09,8.82381428]
[1736196846607,8.82381428,219.16,219.06,23.776884]
[1736196846608,8.82381428,219.15,219.08,8.82381428]
[1736196846796,8.82381428,219.14,219.08,8.82381428]
[1736196848287,11.4056,219.19,219.08,8.82381428]
[1736196848486,8.82381428,219.15,219.08,8.82381428]
[1736196849018,8.82381428,219.14,219.06,25.423484]
[1736196849313,8.82381428,219.14,219.08,8.82381428]
[1736196849802,8.82381428,219.16,219.09,8.82381428]
[1736196849987,11.4056,219.19,219.09,8.82381428]
[1736196850310,8.82381428,219.12,219.06,25.423484]
[1736196850615,8.82381428,219.11,219.06,23.776884]
[1736196850920,8.82381428,219.1,219.06,23.776884]
[1736196851713,8.82381428,219.11,219.06,23.776884]
[1736196851920,8.82381428,219.09,219.05,6.5362]
[1736196854336,8.82381428,219.07,219.0,16.82871428]
[1736196854494,8.82381428,219.01,218.95,6.4008]
[1736196854835,8.82381428,219.01,218.96,23.776884]
[1736196855014,8.82381428,219.02,218.96,32.60069828]
[1736196855497,8.82381428,219.02,218.96,23.776884]
[1736196855692,8.82381428,219.02,218.95,15.22461428]
[1736196856022,8.82381428,219.01,218.95,15.22461428]
[1736196856189,8.82381428,219.01,218.96,23.776884]
[1736196857025,8.82381428,219.02,218.96,23.776884]
[1736196857318,8.82381428,219.01,218.96,24.051884]
[1736196857735,8.82381428,219.02,218.96,24.051884]
[1736196858095,31.4108,219.09,218.96,24.051884]
[1736196858096,8.82381428,219.01,218.96,24.051884]
[1736196858429,8.82381428,219.01,218.96,0.275]
[1736196858631,8.82381428,219.0,218.96,0.275]
[1736196860107,8.82381428,219.01,218.96,0.275]
[1736196861020,8.82381428,218.97,218.96,0.275]
[1736196869519,1.5791,218.99,218.96,0.275]
[1736196869721,8.82381428,218.97,218.96,0.275]
[1736196880360,1.5791,218.99,218.96,0.275]
[1736196880562,8.82381428,218.99,218.96,0.275]
[1736196880743,8.82381428,219.0,218.96,0.275]
[1736196881068,28.82381428,219.01,218.96,0.275]
[1736196881663,8.82381428,219.0,218.96,0.275]
[1736196881872,8.82381428,218.99,218.96,0.275]
[1736196882168,8.82381428,219.0,218.96,0.275]
[1736196885081,28.82381428,219.01,218.96,0.275]
[1736196885377,8.82381428,219.0,218.96,0.275]
[1736196886482,11.4135,219.04,218.96,0.275]
[1736196886678,8.82381428,219.01,218.96,0.275]
[1736196887284,20.0,219.06,218.97,8.82381428]
[1736196887452,8.82381428,219.04,218.97,8.82381428]
[1736196887983,11.4118,219.08,218.97,8.82381428]
[1736196888157,8.82381428,219.04,218.97,8.82381428]
[1736196888483,8.82381428,219.03,218.96,9.09881428]
[1736196888786,8.82381428,219.02,218.96,0.275]
[1736196888980,11.4118,219.08,218.98,8.82381428]
[1736196889277,8.82381428,219.04,218.97,8.82381428]
[1736196889486,8.82381428,219.03,218.96,34.19609828]
[1736196890474,8.82381428,219.04,218.97,8.82381428]
[1736196890964,8.82381428,219.03,218.96,34.19609828]
[1736196891493,8.82381428,219.02,218.96,25.372284]
[1736196892075,8.82381428,219.03,218.96,34.19609828]
[1736196892254,8.82381428,219.02,218.96,25.372284]
[1736196892862,8.82381428,218.99,218.95,6.6244]
[1736196893590,8.82381428,218.98,218.95,6.6244]
[1736196893797,8.82381428,218.99,218.95,6.6244]
[1736196895395,11.4129,219.06,218.95,6.6244]
[1736196895575,8.82381428,219.0,218.95,6.6244]
[1736196895965,8.82381428,218.99,218.95,6.6244]
[1736196896981,8.82381428,219.0,218.95,6.6244]
[1736196897585,8.82381428,218.99,218.95,6.6244]
[1736196898916,8.82381428,218.99,218.95,6.8994]
[1736196899285,8.82381428,218.96,218.95,0.275]
[1736196903220,20.0,218.97,218.95,0.275]
[1736196903529,8.82381428,218.96,218.95,0.275]
[1736196904007,2.04,219.02,218.95,0.275]
[1736196904188,8.82381428,218.98,218.95,0.275]
[1736196904393,8.82381428,218.97,218.95,0.275]
[1736196905208,8.82381428,218.98,218.95,0.275]
[1736196905729,11.4139,219.04,218.95,0.275]
[1736196905730,13.4539,219.04,218.95,0.275]
[1736196905889,8.82381428,219.0,218.95,0.275]
[1736196906425,8.82381428,218.99,218.95,0.275]
[1736196907925,8.82381428,218.96,218.95,0.275]
[1736196909941,20.24141428,218.96,218.95,0.275]
[1736196920454,20.24141428,218.96,218.84,7.5789]
[1736196920625,8.82381428,218.87,218.84,7.5789]
[1736196921648,8.82381428,218.88,218.84,7.5789]
[1736196923075,8.82381428,218.87,218.84,7.5789]
[1736196923435,8.82381428,218.87,218.84,6.0045]
[1736196924675,8.82381428,218.89,218.84,6.0045]
[1736196924853,8.82381428,218.88,218.84,6.0045]
[1736196925776,11.419,218.94,218.84,6.0045]
[1736196926068,8.82381428,218.89,218.84,6.0045]
[1736196926573,8.82381428,218.9,218.84,6.0045]
[1736196927270,8.82381428,218.89,218.84,6.0045]
[1736196927849,8.82381428,218.9,218.84,6.0045]
[1736196928158,8.82381428,218.89,218.84,6.0045]
[1736196928347,8.82381428,218.9,218.84,6.0045]
[1736196929187,8.82381428,218.89,218.84,6.0045]
[1736196929495,3.82381428,218.89,218.84,6.0045]
[1736196929992,8.82381428,218.88,218.84,6.0045]
[1736196930998,8.82381428,218.87,218.84,6.0045]
[1736196931292,11.419,218.94,218.84,6.0045]
[1736196931293,8.82381428,218.86,218.84,6.0045]
[1736196932795,11.419,218.94,218.84,6.0045]
[1736196932993,8.82381428,218.86,218.84,6.0045]
[1736196933289,7.04,218.97,218.79,6.481]
[1736196933290,8.82381428,218.85,218.79,6.481]
[1736196933490,8.82381428,218.83,218.79,6.481]
[1736196933672,8.82381428,218.82,218.79,6.481]
[1736196934089,8.82381428,218.81,218.79,6.481]
[1736196934302,8.82381428,218.8,218.79,6.481]
[1736196935090,8.82381428,218.8,218.74,8.82381428]
[1736196935091,8.82381428,218.8,218.74,6.4724]
[1736196935268,8.82381428,218.78,218.74,6.4724]
[1736196936288,8.82381428,218.79,218.74,6.4724]
[1736196936900,8.82381428,218.78,218.74,6.4724]
[1736196938100,8.82381428,218.79,218.74,6.4724]
[1736196938904,8.82381428,218.78,218.74,6.4724]
[1736196940480,20.0,218.85,218.74,6.4724]
[1736196940679,8.82381428,218.8,218.74,6.4724]
[1736196941269,8.82381428,218.79,218.74,6.4724]
[1736196942668,8.82381428,218.81,218.74,15.29621428]
[1736196942894,11.4217,218.88,218.76,8.82381428]
[1736196943065,8.82381428,218.84,218.78,8.82381428]
[1736196943265,8.82381428,218.84,218.74,6.4724]
[1736196943266,8.82381428,218.85,218.79,8.82381428]
[1736196944578,8.82381428,218.83,218.77,8.82381428]
[1736196944896,8.82381428,218.83,218.76,8.82381428]
[1736196945109,8.82381428,218.81,218.75,32.60069828]
[1736196946274,8.82381428,218.81,218.75,23.776884]
[1736196946468,8.82381428,218.8,218.74,6.4724]
[1736196946784,8.82381428,218.79,218.74,6.4724]
[1736196948368,8.82381428,218.8,218.74,6.4724]
[1736196949004,8.82381428,218.81,218.75,8.82381428]
[1736196949378,8.82381428,218.81,218.74,15.29621428]
[1736196951900,8.82381428,218.8,218.74,6.4724]
[1736196952108,8.82381428,218.79,218.74,6.4724]
[1736196952583,8.82381428,218.78,218.74,6.4724]
[1736196953097,8.82381428,218.76,218.74,6.4724]
[1736196953276,8.82381428,218.75,218.74,6.4724]
[1736196954196,8.82381428,218.76,218.74,6.4724]
[1736196954800,8.82381428,218.75,218.74,6.4724]
[1736196955177,8.82381428,218.75,218.7,23.776884]
[1736196955893,8.82381428,218.76,218.7,23.776884]
[1736196956281,8.82381428,218.77,218.7,32.60069828]
[1736196958700,8.82381428,218.75,218.7,23.776884]
[1736196960505,8.82381428,218.74,218.69,6.0107]
[1736196960673,8.82381428,218.73,218.69,6.0107]
[1736196961396,8.82381428,218.72,218.69,6.0107]
[1736196961602,8.82381428,218.71,218.69,6.0107]
[1736196962610,8.82381428,218.71,218.64,15.11681428]
[1736196962975,8.82381428,218.71,218.65,23.776884]
[1736196964494,8.82381428,218.72,218.65,32.60069828]
[1736196965904,8.82381428,218.71,218.65,32.60069828]
[1736196966705,8.82381428,218.71,218.65,23.776884]
[1736196968392,8.82381428,218.7,218.64,6.293]
[1736196971812,8.82381428,218.69,218.64,6.293]
[1736196976220,8.82381428,218.71,218.64,15.11681428]
[1736196976525,8.82381428,218.72,218.65,8.82381428]
[1736196977730,8.82381428,218.71,218.64,15.11681428]
[1736196979814,8.82381428,218.71,218.64,6.293]
[1736196980195,8.82381428,218.67,218.64,6.293]
[1736196984128,8.82381428,218.67,218.63,20.0]
[1736196984425,1.6225,218.74,218.63,20.0]
[1736196984426,8.82381428,218.66,218.63,20.0]
[1736196985133,8.82381428,218.67,218.63,20.0]
[1736196987332,8.82381428,218.68,218.63,20.0]
[1736196994347,8.82381428,218.65,218.63,20.0]
[1736196994550,8.82381428,218.66,218.63,20.0]
[1736196996845,8.82381428,218.67,218.63,20.0]
[1736197006326,8.82381428,218.66,218.63,20.0]
[1736197007249,8.82381428,218.67,218.63,20.0]
[1736197011348,3.6225,218.74,218.63,20.0]
[1736197011349,8.82381428,218.65,218.63,20.0]
[1736197011860,8.82381428,218.64,218.63,20.0]
[1736197014843,8.82381428,218.64,218.6,20.0]
[1736197015032,8.82381428,218.61,218.6,20.0]
[1736197015659,8.82381428,218.62,218.6,20.0]
[1736197016557,8.82381428,218.63,218.6,20.0]
[1736197019334,20.0,218.68,218.6,20.0]
[1736197019657,20.0,218.68,218.61,8.82381428]
[1736197019861,28.82381428,218.68,218.61,8.82381428]
[1736197020169,8.82381428,218.69,218.62,8.82381428]
[1736197020648,8.82381428,218.68,218.61,15.43071428]
[1736197022046,8.82381428,218.68,218.62,8.82381428]
[1736197022262,2.0,218.72,218.62,8.82381428]
[1736197022467,8.82381428,218.7,218.64,8.82381428]
[1736197023765,8.82381428,218.7,218.63,8.82381428]
[1736197025067,8.82381428,218.67,218.61,6.6069]
[1736197025249,8.82381428,218.67,218.61,15.43071428]
[1736197025653,8.82381428,218.68,218.62,8.82381428]
[1736197026473,8.82381428,218.67,218.61,15.43071428]
[1736197026651,8.82381428,218.66,218.61,6.6069]
[1736197026851,2.0,218.73,218.61,6.6069]
[1736197026852,8.82381428,218.64,218.61,6.6069]
[1736197028441,8.82381428,218.63,218.61,6.6069]
[1736197028641,8.82381428,218.64,218.61,6.6069]
[1736197029262,23.776884,218.72,218.61,6.6069]
[1736197029471,8.82381428,218.68,218.61,15.43071428]
[1736197031583,8.82381428,218.69,218.63,8.82381428]
[1736197031757,8.82381428,218.7,218.63,8.82381428]
[1736197032178,8.82381428,218.69,218.63,8.82381428]
[1736197032354,8.82381428,218.7,218.63,8.82381428]
[1736197033854,8.82381428,218.69,218.63,8.82381428]
[1736197034053,21.6225,218.74,218.64,8.82381428]
[1736197034054,8.82381428,218.7,218.64,8.82381428]
[1736197034581,8.82381428,218.71,218.64,8.82381428]
[1736197035070,8.82381428,218.7,218.64,8.82381428]
[1736197035282,8.82381428,218.7,218.63,8.82381428]
[1736197035489,8.82381428,218.69,218.62,8.82381428]
[1736197035780,8.82381428,218.68,218.62,8.82381428]
[1736197035981,8.82381428,218.67,218.61,15.43071428]
[1736197036689,8.82381428,218.68,218.62,8.82381428]
[1736197038593,8.82381428,218.68,218.61,15.43071428]
[1736197040295,8.82381428,218.67,218.61,6.6069]
[1736197044091,8.82381428,218.67,218.61,15.43071428]
[1736197044598,8.82381428,218.67,218.61,6.6069]
[1736197044803,8.82381428,218.66,218.61,6.6069]
[1736197046283,8.82381428,218.65,218.61,6.6069]
[1736197046601,8.82381428,218.64,218.61,6.6069]
[1736197046804,8.82381428,218.63,218.61,6.6069]
[1736197047169,8.82381428,218.64,218.61,6.6069]
[1736197047582,8.82381428,218.62,218.6,20.0]
[1736197048069,8.82381428,218.63,218.6,20.0]
[1736197049714,8.82381428,218.65,218.6,20.0]
[1736197050293,11.4305,218.72,218.6,20.0]
[1736197050513,8.82381428,218.66,218.6,20.0]
[1736197050703,8.82381428,218.65,218.6,20.0]
[1736197051398,8.82381428,218.64,218.6,20.0]
[1736197055421,11.4305,218.72,218.6,20.0]
[1736197055722,8.82381428,218.66,218.6,20.0]
[1736197056813,8.82381428,218.65,218.6,20.0]
[1736197059741,8.82381428,218.64,218.6,20.0]
[1736197060431,8.82381428,218.62,218.6,20.0]
[1736197060899,8.82381428,218.63,218.6,20.0]
[1736197061325,20.0,218.69,218.64,11.17618572]
[1736197061495,8.82381428,218.65,218.64,11.17618572]
[1736197062616,11.4316,218.7,218.64,11.17618572]
[1736197062927,8.82381428,218.66,218.64,11.17618572]
[1736197064332,8.82381428,218.65,218.64,11.17618572]
[1736197068632,8.82381428,218.66,218.64,11.17618572]
[1736197073636,1.6225,218.74,218.64,11.17618572]
[1736197073808,8.82381428,218.7,218.64,11.17618572]
[1736197075238,8.82381428,218.69,218.64,11.17618572]
[1736197075420,8.82381428,218.67,218.64,11.17618572]
[1736197075928,8.82381428,218.66,218.64,11.17618572]
[1736197076329,8.82381428,218.65,218.64,11.17618572]
[1736197087666,32.60069828,218.65,218.64,11.17618572]
[1736197092276,23.776884,218.65,218.64,11.17618572]
[1736197092567,32.60069828,218.65,218.64,11.17618572]
[1736197094372,20.0,218.62,218.51,6.3612]
[1736197094548,8.82381428,218.55,218.51,6.3612]
[1736197095760,8.82381428,218.54,218.51,6.3612]
[1736197097987,8.82381428,218.55,218.51,6.3612]
[1736197098390,8.82381428,218.54,218.51,6.3612]
[1736197099190,8.82381428,218.55,218.51,6.3612]
[1736197101055,13.4368,218.6,218.51,6.3612]
[1736197101056,8.82381428,218.54,218.51,6.3612]
[1736197102402,8.82381428,218.52,218.49,1.5479]
[1736197102567,35.29525712,218.57,218.46,26.212]
[1736197102568,8.82381428,218.5,218.46,26.212]
[1736197102766,8.82381428,218.5,218.46,6.212]
[1736197102986,8.82381428,218.47,218.44,1.6535]
[1736197103189,8.82381428,218.46,218.41,6.212]
[1736197103469,8.82381428,218.47,218.41,6.212]
[1736197104674,8.82381428,218.46,218.41,6.212]
[1736197104874,8.82381428,218.45,218.41,6.212]
[1736197105092,8.82381428,218.46,218.41,6.212]
[1736197105476,8.82381428,218.47,218.41,6.212]
[1736197106114,23.776884,218.52,218.41,6.212]
[1736197106401,8.82381428,218.47,218.41,6.212]
[1736197108180,8.82381428,218.46,218.41,6.212]
[1736197109007,8.82381428,218.47,218.41,6.212]
[1736197109314,13.4402,218.53,218.41,6.212]
[1736197109510,8.82381428,218.51,218.44,8.82381428]
[1736197110510,2.0,218.53,218.44,8.82381428]
[1736197110511,8.82381428,218.5,218.44,8.82381428]
[1736197111508,8.76876489,218.5,218.44,8.82381428]
[1736197111707,8.82381428,218.49,218.43,8.82381428]
[1736197113110,22.0,218.53,218.41,6.212]
[1736197113111,8.82381428,218.48,218.41,6.212]
[1736197113290,8.82381428,218.46,218.41,6.212]
[1736197113604,8.82381428,218.47,218.41,6.212]
[1736197113912,8.82381428,218.48,218.42,8.82381428]
[1736197114090,8.82381428,218.47,218.41,15.03581428]
[1736197116210,8.82381428,218.47,218.41,6.212]
[1736197118417,20.0,218.53,218.43,8.82381428]
[1736197118583,8.82381428,218.5,218.43,8.82381428]
[1736197119487,8.82381428,218.49,218.43,8.82381428]
[1736197119906,8.82381428,218.46,218.41,6.212]
[1736197120086,8.82381428,218.47,218.41,6.212]
[1736197127317,8.82381428,218.44,218.41,6.212]
[1736197127488,8.82381428,218.43,218.41,6.212]
[1736197127688,8.82381428,218.43,218.37,8.82381428]
[1736197128732,8.82381428,218.44,218.35,6.1842]
[1736197128891,23.776884,218.52,218.35,6.1842]
[1736197128892,8.82381428,218.48,218.41,8.82381428]
[1736197129394,37.217584,218.52,218.42,15.00801428]
[1736197129598,8.82381428,218.49,218.42,15.00801428]
[1736197129818,8.82381428,218.5,218.43,8.82381428]
[1736197130117,8.82381428,218.51,218.44,8.82381428]
[1736197130497,8.82381428,218.5,218.44,8.82381428]
[1736197130696,8.82381428,218.51,218.44,8.82381428]
[1736197130922,13.0137,218.59,218.46,8.82381428]
[1736197131230,8.82381428,218.54,218.47,8.82381428]
[1736197131428,8.82381428,218.53,218.47,8.82381428]
[1736197133126,8.82381428,218.52,218.46,8.82381428]
[1736197133593,8.82381428,218.52,218.45,8.82381428]
[1736197134024,8.82381428,218.5,218.44,8.82381428]
[1736197135323,8.82381428,218.51,218.44,8.82381428]
[1736197135712,8.82381428,218.52,218.45,8.82381428]
[1736197138829,8.82381428,218.51,218.45,8.82381428]
[1736197139534,8.82381428,218.52,218.45,8.82381428]
[1736197139836,8.82381428,218.51,218.44,8.82381428]
[1736197140141,8.82381428,218.51,218.42,6.1842]
[1736197140438,8.82381428,218.45,218.42,6.1842]
[1736197140606,8.82381428,218.46,218.42,6.1842]
[1736197140809,8.82381428,218.47,218.42,6.1842]
[1736197142440,8.82381428,218.48,218.42,6.1842]
[1736197142742,11.439,218.55,218.43,8.82381428]
[1736197142932,8.82381428,218.49,218.42,6.1842]
[1736197143242,8.82381428,218.49,218.42,15.00801428]
[1736197143449,11.439,218.55,218.44,8.82381428]
[1736197143626,8.82381428,218.51,218.44,8.82381428]
[1736197143825,8.82381428,218.51,218.42,6.1842]
[1736197143826,21.5763,218.59,218.48,8.82381428]
[1736197144030,21.5763,218.59,218.46,20.0]
[1736197144031,6.2648,218.63,218.5,8.82381428]
[1736197144226,8.82381428,218.57,218.5,15.15401428]
[1736197144434,8.82381428,218.56,218.5,6.3302]
[1736197145422,8.82381428,218.61,218.53,8.82381428]
[1736197146117,8.82381428,218.6,218.53,8.82381428]
[1736197146315,8.82381428,218.6,218.53,28.82381428]
[1736197146546,8.82381428,218.58,218.54,20.0]
[1736197147552,8.82381428,218.56,218.51,1.6367]
[1736197147856,13.4338,218.65,218.53,20.0]
[1736197147857,8.82381428,218.55,218.53,20.0]
[1736197148150,8.82381428,218.56,218.53,20.0]
[1736197148323,8.82381428,218.58,218.53,20.0]
[1736197148533,8.82381428,218.59,218.53,20.0]
[1736197148731,8.82381428,218.59,218.52,8.82381428]
[1736197149320,2.0,218.65,218.53,28.82381428]
[1736197149516,11.4337,218.66,218.55,8.82381428]
[1736197149715,8.82381428,218.62,218.55,8.82381428]
[1736197149920,8.82381428,218.65,218.58,8.82381428]
[1736197150345,8.82381428,218.64,218.57,8.82381428]
[1736197150516,8.82381428,218.63,218.56,8.82381428]
[1736197150720,8.82381428,218.62,218.56,23.776884]
[1736197150943,8.82381428,218.63,218.56,32.60069828]
[1736197151320,8.82381428,218.62,218.55,28.82381428]
[1736197151522,8.82381428,218.61,218.54,8.82381428]
[1736197151930,8.82381428,218.6,218.54,23.776884]
[1736197152130,8.82381428,218.61,218.54,32.60069828]
[1736197152336,20.0,218.67,218.54,23.776884]
[1736197152337,8.82381428,218.6,218.54,23.776884]
[1736197153054,13.81595651,218.6,218.54,23.776884]
[1736197153256,13.81595651,218.62,218.55,13.81595651]
[1736197153425,13.81595651,218.6,218.54,23.776884]
[1736197154044,1.574,218.69,218.57,20.0]
[1736197154237,13.81595651,218.66,218.59,20.31225651]
[1736197154435,13.81595651,218.65,218.59,6.4963]
[1736197154674,13.81595651,218.66,218.59,20.31225651]
[1736197154968,11.431,218.71,218.59,6.4963]
[1736197154969,13.81595651,218.65,218.59,6.4963]
[1736197155126,11.431,218.71,218.59,20.31225651]
[1736197155127,13.81595651,218.66,218.59,20.31225651]
[1736197155738,3.524,218.74,218.59,6.4963]
[1736197155739,13.81595651,218.65,218.59,6.4963]
[1736197155967,13.81595651,218.66,218.59,20.31225651]
[1736197156169,13.81595651,218.68,218.61,13.81595651]
[1736197156659,13.81595651,218.67,218.6,15.37745651]
[1736197157049,11.4278,218.77,218.62,13.81595651]
[1736197157358,13.81595651,218.72,218.65,13.81595651]
[1736197157524,13.81595651,218.7,218.64,33.81595651]
[1736197157926,13.81595651,218.71,218.64,33.81595651]
[1736197158163,13.81595651,218.74,218.67,19.87925651]
[1736197158368,13.81595651,218.75,218.68,13.81595651]
[1736197158530,13.81595651,218.74,218.67,19.87925651]
[1736197158728,13.81595651,218.73,218.67,6.0633]
[1736197159129,11.4257,218.81,218.67,6.0633]
[1736197159130,13.81595651,218.74,218.67,19.87925651]
[1736197159353,13.81595651,218.71,218.67,6.0633]
[1736197159642,13.81595651,218.72,218.67,6.0633]
[1736197159843,13.81595651,218.79,218.68,23.776884]
[1736197159844,13.81595651,218.73,218.68,23.776884]
[1736197160125,1.5666,218.84,218.67,6.0633]
[1736197160126,1.5666,218.84,218.7,20.0]
[1736197160327,13.81595651,218.73,218.7,20.0]
[1736197160563,13.81595651,218.74,218.7,20.0]
[1736197160749,13.81595651,218.76,218.69,15.32965651]
[1736197160960,13.81595651,218.77,218.7,33.81595651]
[1736197161333,13.81595651,218.75,218.71,20.0]
[1736197161876,13.81595651,218.73,218.69,1.5137]
[1736197162345,13.81595651,218.76,218.7,20.0]
[1736197162862,13.81595651,218.75,218.7,20.0]
[1736197163170,13.81595651,218.74,218.7,20.0]
[1736197163328,13.81595651,218.73,218.7,20.0]
[1736197163532,13.81595651,218.74,218.7,20.0]
[1736197163742,13.81595651,218.73,218.7,20.0]
[1736197164069,13.81595651,218.74,218.7,20.0]
[1736197164369,13.81595651,218.76,218.7,20.0]
[1736197164553,13.81595651,218.78,218.71,13.81595651]
[1736197164761,13.81595651,218.77,218.71,23.776884]
[1736197164943,13.81595651,218.76,218.71,23.776884]
[1736197165563,13.81595651,218.77,218.7,37.59284051]
[1736197165762,13.81595651,218.76,218.7,23.776884]
[1736197165935,13.81595651,218.75,218.7,23.776884]
[1736197166131,13.81595651,218.77,218.7,37.59284051]
[1736197166335,13.81595651,218.78,218.71,13.81595651]
[1736197166569,13.81595651,218.76,218.7,23.776884]
[1736197166847,12.9907,218.84,218.71,20.0]
[1736197166848,13.81595651,218.74,218.71,20.0]
[1736197167165,13.81595651,218.75,218.7,23.776884]
[1736197167337,13.81595651,218.74,218.71,20.0]